bitfinex-derivatives/quotes_ETHF0:USTF0_20250105
["timestamp","ask_amount","ask_price","bid_price","bid_amount"]
[1736116214941,1.06348,3646.0,3645.9,4.30556578]
[1736116215647,4.30075706,3646.0,3645.9,4.30556578]
[1736116216945,4.30075706,3646.0,3645.9,3.63006578]
[1736116217240,0.2469,3645.7,3645.6,6.46243462]
[1736116217438,3.4547,3645.7,3645.6,6.46243462]
[1736116219043,3.4547,3645.7,3645.5,0.99782057]
[1736116219044,0.24691,3645.6,3645.5,0.99782057]
[1736116219245,1.12171,3645.6,3645.5,0.99782057]
[1736116226554,0.8748,3645.6,3645.5,1.24473057]
[1736116228750,1.12171,3645.6,3645.5,0.99782057]
[1736116228950,0.8748,3645.6,3645.1,6.46243462]
[1736116229153,0.24693,3645.3,3645.2,0.99782057]
[1736116231063,3.59673727,3645.5,3645.0,1.24476057]
[1736116231255,0.4442,3645.2,3645.0,1.24476057]
[1736116231454,0.68634,3645.1,3645.0,1.24476057]
[1736116231656,0.68634,3645.1,3645.0,0.99782057]
[1736116231855,0.68634,3645.1,3645.0,1.24477057]
[1736116232052,0.4394,3645.1,3645.0,1.24477057]
[1736116232255,0.68634,3645.1,3645.0,0.99782057]
[1736116232451,0.68634,3645.1,3645.0,1.24477057]
[1736116233060,0.4394,3645.1,3645.0,1.24477057]
[1736116233357,0.68634,3645.1,3645.0,0.99782057]
[1736116234558,0.68634,3645.1,3645.0,1.24477057]
[1736116235350,0.68634,3645.1,3645.0,0.99782057]
[1736116235563,0.68634,3645.1,3645.0,1.24477057]
[1736116236857,0.4394,3645.1,3645.0,0.99782057]
[1736116237051,0.68634,3645.1,3645.0,0.99782057]
[1736116238461,0.68634,3645.1,3645.0,1.24477057]
[1736116239864,0.68634,3645.1,3645.0,0.99782057]
[1736116241962,0.4394,3645.1,3644.8,0.99782057]
[1736116242161,0.24695,3644.9,3644.8,0.99782057]
[1736116249765,0.4394,3645.1,3644.8,0.99782057]
[1736116250071,2.6003167,3645.2,3645.0,0.99782057]
[1736116250267,2.8472467,3645.2,3645.1,0.418]
[1736116251467,2.8472467,3645.2,3645.1,0.66494]
[1736116251667,0.69113,3645.2,3645.1,0.66494]
[1736116251866,0.69113,3645.2,3645.1,1.08974]
[1736116252067,0.69113,3645.2,3645.1,0.8428]
[1736116255775,0.24693,3645.2,3645.1,0.8428]
[1736116256276,2.4030467,3645.2,3645.1,0.8428]
[1736116259176,0.24693,3645.2,3645.1,0.8428]
[1736116260976,2.4030467,3645.2,3645.1,0.8428]
[1736116261280,2.4030467,3645.2,3645.1,0.418]
[1736116262479,0.24693,3645.2,3645.1,0.418]
[1736116265776,3.23727706,3645.3,3645.1,0.418]
[1736116266072,0.24693,3645.2,3645.1,0.66494]
[1736116266476,2.40358407,3645.2,3645.1,0.66494]
[1736116267082,2.40358407,3645.2,3645.1,0.418]
[1736116269885,0.24693,3645.2,3645.1,0.418]
[1736116273085,3.48420706,3645.2,3645.1,0.418]
[1736116274478,3.89587308,3645.2,3645.1,0.418]
[1736116275789,0.65859602,3645.2,3645.1,0.418]
[1736116277089,0.24693,3645.2,3645.1,4.56309565]
[1736116277588,4.56329941,3645.3,3645.2,0.24693]
[1736116277785,4.31636941,3645.3,3645.2,0.69533]
[1736116277988,4.31636941,3645.3,3645.2,5.33945057]
[1736116278587,4.31636941,3645.3,3645.2,5.33717141]
[1736116279489,2.4050864,3645.7,3645.6,0.24691]
[1736116279679,2.4050864,3645.7,3645.6,0.99782057]
[1736116280285,2.1581864,3645.7,3645.6,1.65503057]
[1736116280586,2.4050864,3645.8,3645.6,1.65503057]
[1736116280787,2.4050864,3645.8,3645.6,5.55321622]
[1736116281089,2.4050864,3645.8,3645.7,0.2469]
[1736116281583,2.1581864,3645.8,3645.7,0.2469]
[1736116281782,2.4050764,3645.8,3645.7,0.2469]
[1736116282780,2.1581864,3645.8,3645.7,0.2469]
[1736116283490,0.4179,3645.9,3645.7,0.2469]
[1736116283684,0.24689,3645.8,3645.7,0.2469]
[1736116284290,0.24689,3645.8,3645.7,0.6876]
[1736116284690,0.24688,3645.9,3645.8,0.24689]
[1736116284888,2.4050664,3645.9,3645.8,0.99782057]
[1736116286691,0.24688,3645.9,3645.8,0.99782057]
[1736116288997,2.9913864,3646.1,3645.6,3.2078]
[1736116289192,0.24689,3645.8,3645.7,0.99782057]
[1736116291695,0.24689,3645.9,3645.7,0.99782057]
[1736116292493,0.24689,3645.9,3645.7,1.24472057]
[1736116299196,0.24689,3645.9,3645.8,0.24689]
[1736116300495,0.24689,3645.9,3645.7,0.99782057]
[1736116300800,0.24689,3645.9,3645.7,1.24471057]
[1736116305799,2.9913864,3646.1,3645.7,0.24689]
[1736116306105,0.24689,3645.9,3645.7,0.24689]
[1736116306309,2.9913864,3646.1,3645.9,0.24688]
[1736116307202,3.2382564,3646.1,3645.9,0.24688]
[1736116307506,2.9913864,3646.1,3645.9,0.24688]
[1736116307700,0.24688,3646.0,3645.8,0.99782057]
[1736116308406,2.9913864,3646.1,3645.8,0.99782057]
[1736116308603,0.24688,3646.0,3645.8,0.99782057]
[1736116308800,0.24688,3646.0,3645.9,0.24688]
[1736116310008,0.24688,3646.0,3645.8,0.99782057]
[1736116310205,0.24688,3646.0,3645.8,1.24471057]
[1736116310508,0.24688,3645.9,3645.8,1.24471057]
[1736116310707,0.24688,3646.0,3645.8,1.24471057]
[1736116311307,0.24688,3645.9,3645.8,1.24471057]
[1736116315107,2.4050664,3646.0,3645.8,1.24471057]
[1736116316215,0.24688,3645.9,3645.8,1.24471057]
[1736116316814,0.24688,3645.9,3645.8,0.24689]
[1736116319415,2.4050664,3646.0,3645.8,0.24689]
[1736116319605,2.1581864,3646.0,3645.8,0.24689]
[1736116319809,0.24688,3645.9,3645.8,0.24689]
[1736116320211,2.4050664,3645.9,3645.8,0.24689]
[1736116320812,2.1581864,3645.9,3645.8,0.24689]
[1736116322816,2.4050664,3646.0,3645.9,0.24688]
[1736116323016,2.1581864,3646.0,3645.9,1.24470057]
[1736116324021,3.6488401,3646.0,3645.9,5.38415647]
[1736116325620,3.2372796,3646.0,3645.9,5.38415647]
[1736116326723,3.6488401,3646.0,3645.9,5.38415647]
[1736116328613,3.6488401,3646.0,3645.9,5.79735647]
[1736116329533,3.2372796,3646.0,3645.9,5.79735647]
[1736116330722,3.4841596,3646.0,3645.9,5.79735647]
[1736116330925,3.2372796,3646.0,3645.9,5.79735647]
[1736116333329,4.23510017,3646.0,3645.9,1.8249359]
[1736116333533,4.48198017,3646.0,3645.9,1.8249359]
[1736116334226,4.48198017,3646.0,3645.9,8.28263849]
[1736116335731,0.24691,3645.6,3645.5,6.45770259]
[1736116336732,0.2469,3645.7,3645.5,6.70461259]
[1736116336931,0.4483,3645.6,3645.5,6.70461259]
[1736116337123,1.13531,3645.6,3645.5,6.45770259]
[1736116337729,4.7854083,3645.6,3645.4,6.45770259]
[1736116337929,4.5384983,3645.6,3645.5,0.24691]
[1736116339136,4.12687265,3645.6,3645.5,0.24691]
[1736116340037,0.8884,3645.6,3645.5,0.24691]
[1736116341229,0.8884,3645.6,3645.5,1.24473057]
[1736116341435,0.8884,3645.6,3645.5,1.68283057]
[1736116341936,0.8884,3645.6,3645.5,8.58783316]
[1736116343038,3.0468004,3645.6,3645.5,8.58783316]
[1736116347736,3.0468004,3645.6,3645.5,6.70461259]
[1736116349243,0.8884,3645.6,3645.5,0.24691]
[1736116349742,1.3064,3645.6,3645.5,0.24691]
[1736116352042,1.3064,3645.6,3645.5,4.55205581]
[1736116353139,3.46432558,3645.6,3645.5,0.24691]
[1736116353636,3.04632558,3645.6,3645.5,0.24691]
[1736116354144,3.04632558,3645.6,3645.5,0.66081]
[1736116354645,3.04632558,3645.6,3645.5,11.20230493]
[1736116356044,3.04632558,3645.6,3645.5,4.74460234]
[1736116367753,3.04632558,3645.6,3645.5,5.15150234]
[1736116369163,2.15792558,3645.6,3645.5,5.15150234]
[1736116370651,2.15792558,3645.6,3645.5,11.60920493]
[1736116375056,3.23847265,3645.7,3645.5,11.36229493]
[1736116375256,3.23847265,3645.7,3645.6,0.24691]
[1736116376259,3.23847265,3645.7,3645.6,4.33070234]
[1736116378061,0.41160063,3645.8,3645.7,0.2469]
[1736116379365,4.72956417,3645.8,3645.7,4.33069234]
[1736116380761,4.97645417,3645.8,3645.7,4.33069234]
[1736116380963,4.72956417,3645.8,3645.7,10.78839493]
[1736116382264,4.72956417,3645.8,3645.7,4.55602054]
[1736116382265,0.41160063,3645.8,3645.7,4.55602054]
[1736116383565,6.51231117,3645.9,3645.7,4.30912054]
[1736116383765,6.51231117,3645.9,3645.8,0.24689]
[1736116385166,11.05470792,3645.9,3645.8,0.24689]
[1736116387464,5.65468675,3645.9,3645.8,4.55601054]
[1736116407681,5.20448675,3645.9,3645.8,4.55601054]
[1736116411779,4.95759675,3645.9,3645.8,4.55601054]
[1736116412378,4.95759675,3645.9,3645.8,4.96701054]
[1736116413784,5.20447675,3645.9,3645.8,4.96701054]
[1736116421288,4.95759675,3645.9,3645.8,4.96701054]
[1736116421690,5.20447675,3645.9,3645.8,4.96701054]
[1736116424086,1.07368063,3645.9,3645.8,4.96701054]
[1736116425386,0.66208,3645.9,3645.8,4.96701054]
[1736116427084,1.07368063,3645.9,3645.8,4.96701054]
[1736116429996,1.07368063,3645.9,3645.8,4.72012054]
[1736116430193,5.20454453,3645.9,3645.8,4.96701054]
[1736116435093,10.6045657,3645.9,3645.8,4.96701054]
[1736116438194,5.20454453,3645.9,3645.8,4.96701054]
[1736116441400,4.95766453,3645.9,3645.8,4.96701054]
[1736116441704,5.20454453,3645.9,3645.8,4.96701054]
[1736116450811,5.20454453,3645.9,3645.8,4.72012054]
[1736116451312,5.20454453,3645.9,3645.8,4.96701054]
[1736116453517,4.95766453,3645.9,3645.8,4.96701054]
[1736116453912,4.95766453,3645.9,3645.8,4.72012054]
[1736116454112,5.20454453,3645.9,3645.8,4.96701054]
[1736116457916,4.78934453,3645.9,3645.8,4.96701054]
[1736116459311,4.78934453,3645.9,3645.8,4.72012054]
[1736116460007,4.78934453,3645.9,3645.8,4.30912054]
[1736116462213,4.78934453,3645.9,3645.8,4.55601054]
[1736116463413,4.78934453,3645.9,3645.8,4.30912054]
[1736116465121,4.78934453,3645.9,3645.8,4.55601054]
[1736116467718,4.78934453,3645.9,3645.8,4.30912054]
[1736116470419,10.1893657,3645.9,3645.8,4.30912054]
[1736116471323,10.1893657,3645.9,3645.8,4.55601054]
[1736116471723,4.78934453,3645.9,3645.8,4.55601054]
[1736116478432,4.54246453,3645.9,3645.8,4.55601054]
[1736116481936,4.78934453,3645.9,3645.8,4.55601054]
[1736116483226,0.65848063,3645.9,3645.8,4.3372226]
[1736116484032,0.41160063,3645.9,3645.8,4.3372226]
[1736116484730,5.64690117,3646.0,3645.8,4.3372226]
[1736116485132,5.64690117,3646.0,3645.9,0.4408]
[1736116486028,10.18970073,3646.0,3645.9,4.75248335]
[1736116488236,10.18970073,3646.0,3645.9,4.99936335]
[1736116488833,10.18970073,3646.0,3645.9,4.75248335]
[1736116492638,10.18970073,3646.0,3645.9,0.4408]
[1736116493951,10.18970073,3646.0,3645.9,4.75248335]
[1736116496946,0.65848063,3646.0,3645.9,4.53097806]
[1736116497954,0.24688,3646.0,3645.9,0.4408]
[1736116499656,4.78902349,3646.0,3645.9,4.75169406]
[1736116502852,4.78902349,3646.0,3645.9,4.31089406]
[1736116513464,10.18904466,3646.0,3645.8,4.98358406]
[1736116514369,4.54214349,3645.9,3645.8,4.98358406]
[1736116514668,4.78902349,3645.9,3645.8,4.98358406]
[1736116515568,0.41160063,3645.9,3645.8,4.73669406]
[1736116515769,0.41160063,3645.9,3645.8,4.98358406]
[1736116516667,5.64690117,3646.0,3645.8,4.98358406]
[1736116517666,0.24688,3645.9,3645.8,4.73669406]
[1736116518068,0.65848063,3645.9,3645.8,4.73669406]
[1736116519371,0.65848063,3645.9,3645.8,4.98358406]
[1736116519565,4.78906282,3645.9,3645.8,4.98358406]
[1736116520670,4.78906282,3645.9,3645.8,4.73669406]
[1736116521263,4.78906282,3645.9,3645.8,4.98358406]
[1736116521969,4.54218282,3645.9,3645.8,4.98358406]
[1736116522269,4.78906282,3645.9,3645.8,4.73669406]
[1736116523469,0.65848063,3645.9,3645.8,4.73669406]
[1736116523669,0.65848063,3645.9,3645.8,4.98358406]
[1736116524660,0.24688,3645.9,3645.8,4.73669406]
[1736116524863,0.24688,3645.9,3645.8,4.98358406]
[1736116525862,4.78904454,3645.9,3645.8,4.98358406]
[1736116527268,0.65848063,3645.9,3645.8,4.98358406]
[1736116528672,0.24688,3645.9,3645.8,4.98358406]
[1736116529066,0.24688,3645.9,3645.8,4.73669406]
[1736116529368,0.24688,3645.9,3645.8,4.98358406]
[1736116530071,4.78899522,3645.9,3645.8,4.98358406]
[1736116534772,4.78899522,3645.9,3645.8,4.73669406]
[1736116535272,4.78899522,3645.9,3645.8,4.98358406]
[1736116536373,4.78899522,3645.9,3645.8,4.73669406]
[1736116543283,4.54211522,3645.9,3645.8,5.73451463]
[1736116543582,4.54211522,3645.9,3645.8,5.98140463]
[1736116543775,4.54211522,3645.9,3645.8,4.98358406]
[1736116543977,4.32019771,3645.9,3645.8,11.22042384]
[1736116547984,4.73179834,3645.9,3645.8,4.76272125]
[1736116548683,4.73179834,3645.9,3645.8,4.51583125]
[1736116549184,4.73179834,3645.9,3645.8,4.76272125]
[1736116550981,4.73179834,3645.9,3645.8,4.98381554]
[1736116556785,4.97867834,3645.9,3645.8,4.98381554]
[1736116557178,4.97867834,3645.9,3645.8,0.67269]
[1736116557380,4.73179834,3645.9,3645.8,0.67269]
[1736116557581,4.73179834,3645.9,3645.8,4.7624595]
[1736116559086,4.97867834,3645.9,3645.8,4.7624595]
[1736116562096,4.73179834,3645.9,3645.8,4.7624595]
[1736116564390,4.73179834,3645.9,3645.8,9.07147814]
[1736116565594,0.41160063,3645.9,3645.8,11.22016209]
[1736116568093,0.41160063,3645.9,3645.8,4.7624595]
[1736116569598,0.41160063,3645.9,3645.8,11.22016209]
[1736116572696,0.41160063,3645.9,3645.8,4.7624595]
[1736116585805,7.55923925,3646.0,3645.9,0.24688]
[1736116585806,3.23904154,3646.0,3645.9,0.24688]
[1736116586006,3.23904154,3646.0,3645.9,1.68480057]
[1736116586202,3.23904154,3646.0,3645.9,2.09050057]
[1736116586805,1.35304154,3646.0,3645.9,5.29830057]
[1736116587001,1.35304154,3646.1,3646.0,0.24688]
[1736116587304,1.35304154,3646.1,3646.0,1.24470057]
[1736116588402,2.15810933,3646.4,3646.3,0.24686]
[1736116588606,2.15810933,3646.4,3646.3,1.24468057]
[1736116589108,2.15810933,3646.4,3646.3,1.66798057]
[1736116589813,2.15810933,3646.5,3646.4,0.24685]
[1736116590109,2.15810933,3646.5,3646.4,1.66987057]
[1736116591306,2.15810933,3646.6,3646.5,0.24684]
[1736116591505,2.15810933,3646.6,3646.5,1.24466057]
[1736116593614,0.99782057,3646.9,3646.5,0.99782057]
[1736116593615,2.15810933,3646.7,3646.5,0.99782057]
[1736116593817,2.15810933,3646.7,3646.6,0.24684]
[1736116595913,2.15810933,3646.7,3646.6,3.45464]
[1736116597810,5.16219771,3647.1,3646.9,0.24682]
[1736116597811,2.15810933,3647.0,3646.9,0.24682]
[1736116598015,2.15810933,3647.0,3646.9,2.29764057]
[1736116599817,0.4352,3647.4,3646.9,6.35137554]
[1736116600018,0.4352,3647.4,3647.3,0.24679]
[1736116600516,0.4352,3647.4,3647.3,0.68289]
[1736116600917,0.68198,3647.4,3647.3,0.68289]
[1736116601117,0.4352,3647.4,3647.3,0.68289]
[1736116604515,0.24678,3647.6,3647.4,0.24678]
[1736116604715,0.24678,3647.5,3647.4,0.24678]
[1736116605818,0.4082,3647.5,3647.4,0.24678]
[1736116618224,0.4082,3647.5,3647.4,1.24460057]
[1736116622330,0.4083,3647.6,3647.5,0.24678]
[1736116622523,0.65716,3647.8,3647.7,0.24676]
[1736116622723,1.07956,3647.8,3647.7,0.24676]
[1736116623630,0.8328,3647.8,3647.7,0.24676]
[1736116624327,1.07956,3647.8,3647.7,0.24676]
[1736116625128,0.8328,3647.8,3647.7,0.24676]
[1736116626326,1.07956,3647.8,3647.7,0.24676]
[1736116627832,0.8328,3647.8,3647.7,0.24676]
[1736116629134,1.07956,3647.8,3647.7,0.24676]
[1736116629737,0.8328,3647.8,3647.7,0.24676]
[1736116631532,1.07956,3647.8,3647.7,0.24676]
[1736116634132,0.8328,3647.8,3647.7,0.24676]
[1736116634532,1.07956,3647.8,3647.7,0.24676]
[1736116634933,0.8328,3647.8,3647.7,0.24676]
[1736116635133,1.07956,3647.8,3647.7,0.24676]
[1736116636028,0.8328,3647.8,3647.7,0.24676]
[1736116639338,2.58050933,3647.8,3647.7,0.24676]
[1736116641240,0.4224,3647.8,3647.7,0.24676]
[1736116642342,2.58050933,3647.8,3647.7,0.24676]
[1736116643546,2.58050933,3647.8,3647.7,4.54731497]
[1736116644745,0.4224,3647.8,3647.7,4.37306918]
[1736116645443,2.15810933,3647.9,3647.7,4.37306918]
[1736116645444,2.15810933,3647.9,3647.7,4.12630918]
[1736116645646,2.15810933,3647.9,3647.8,1.24458057]
[1736116647543,2.15810933,3648.0,3647.9,0.24675]
[1736116648049,2.15810933,3648.0,3647.9,0.65905]
[1736116648849,2.40484933,3648.0,3647.9,0.65905]
[1736116649059,2.60190933,3648.0,3647.9,0.65905]
[1736116660453,2.60190933,3648.0,3647.9,4.95800757]
[1736116661459,2.60190933,3648.0,3647.9,6.01000757]
[1736116661460,2.15810933,3648.0,3647.9,6.01000757]
[1736116661656,2.15810933,3648.0,3647.9,6.43340757]
[1736116664060,2.58070933,3648.4,3648.3,0.24672]
[1736116665159,0.4226,3648.4,3648.3,4.54317276]
[1736116665556,0.4226,3648.4,3648.3,5.54099333]
[1736116667564,0.4226,3648.4,3648.3,6.39959333]
[1736116668863,0.4226,3648.4,3648.3,2.10314057]
[1736116669264,0.4226,3648.4,3648.3,12.66865695]
[1736116672166,0.4226,3648.4,3648.3,6.22397781]
[1736116673464,0.4317,3648.5,3648.4,0.24672]
[1736116674673,0.4317,3648.5,3648.4,4.53783681]
[1736116677969,0.4317,3648.5,3648.4,0.24672]
[1736116681968,0.24669,3648.9,3648.8,0.24669]
[1736116682270,1.11489,3648.9,3648.8,0.24669]
[1736116687873,3.27299933,3648.9,3648.8,0.24669]
[1736116692378,3.02630933,3648.9,3648.8,0.24669]
[1736116698477,3.27298933,3648.9,3648.8,0.24669]
[1736116699386,3.27298933,3648.9,3648.7,1.41052057]
[1736116699583,3.27298933,3648.9,3648.7,1.65721057]
[1736116701285,2.15810933,3648.8,3648.7,1.65721057]
[1736116704985,4.10172122,3648.9,3648.7,1.41052057]
[1736116705191,4.10172122,3648.9,3648.8,0.24669]
[1736116706388,1.27945246,3648.9,3648.8,0.24669]
[1736116707483,0.83455246,3648.9,3648.8,0.24669]
[1736116707993,0.4233,3648.9,3648.8,4.53780681]
[1736116709595,5.15475017,3648.9,3648.8,4.53780681]
[1736116713496,5.15475017,3648.9,3648.8,8.67140497]
[1736116714801,5.15666249,3648.9,3648.8,8.67140497]
[1736116715001,5.15666249,3648.9,3648.8,4.38028816]
[1736116715002,0.83646478,3648.9,3648.8,4.38028816]
[1736116715401,1.08314478,3648.9,3648.8,4.38028816]
[1736116715602,1.08314478,3648.9,3648.8,4.13359816]
[1736116716211,0.67189232,3648.9,3648.8,4.13359816]
[1736116717613,5.16323144,3648.9,3648.8,4.30803507]
[1736116734223,1.08314478,3648.9,3648.8,4.30803507]
[1736116735823,0.67189232,3648.9,3648.8,4.30803507]
[1736116737010,1.08314478,3648.9,3648.8,4.30803507]
[1736116739916,5.16312472,3648.9,3648.8,4.30803507]
[1736116740826,5.16312472,3648.9,3648.8,4.55472507]
[1736116741517,5.40015037,3648.9,3648.8,10.82543995]
[1736116742517,5.15347037,3648.9,3648.8,10.82543995]
[1736116742717,4.74221791,3648.9,3648.8,10.82543995]
[1736116744220,4.74221791,3648.9,3648.8,6.69136914]
[1736116744416,4.98889791,3648.9,3648.8,6.69136914]
[1736116744824,5.400146,3648.9,3648.8,10.82502866]
[1736116745620,5.153466,3648.9,3648.8,10.82502866]
[1736116745822,5.400146,3648.9,3648.8,10.82502866]
[1736116746921,4.98889791,3648.9,3648.8,10.82502866]
[1736116747424,4.74221791,3648.9,3648.8,6.69136914]
[1736116748221,4.31891791,3648.9,3648.8,6.69136914]
[1736116753330,4.31891791,3648.9,3648.8,9.89916914]
[1736116753826,3.64311791,3648.9,3648.8,3.45449]
[1736116754222,2.29111791,3648.9,3648.8,8.45449]
[1736116754422,2.29111791,3648.9,3648.8,4.45231057]
[1736116754619,5.40002117,3649.1,3649.0,0.24667]
[1736116754833,5.40002117,3649.1,3649.0,1.24449057]
[1736116755426,5.40002117,3649.1,3649.0,0.24667]
[1736116755625,5.40002117,3649.1,3649.0,1.24449057]
[1736116756631,5.40002117,3649.1,3649.0,0.24667]
[1736116757326,5.40002117,3649.1,3649.0,1.24449057]
[1736116759925,5.40002117,3649.1,3649.0,0.24667]
[1736116760125,5.40002117,3649.1,3649.0,1.24449057]
[1736116761928,1.3081,3649.5,3649.0,13.77133246]
[1736116762126,1.3081,3649.5,3649.4,1.24447057]
[1736116764633,0.863,3649.5,3649.4,1.24447057]
[1736116772732,2.15317998,3649.9,3649.8,0.24662]
[1736116772931,2.15317998,3649.9,3649.8,1.29762]
[1736116774039,2.57857998,3649.9,3649.8,1.29762]
[1736116774435,2.57857998,3649.9,3649.8,2.29544057]
[1736116774436,2.15317998,3649.9,3649.8,2.29544057]
[1736116774639,1.2533,3650.0,3649.8,2.04882057]
[1736116774834,1.2533,3650.0,3649.9,0.24661]
[1736116775426,0.837,3650.0,3649.9,0.24661]
[1736116776140,0.837,3650.0,3649.9,4.54221087]
[1736116776736,0.4116,3650.0,3649.9,4.54221087]
[1736116777531,0.4116,3650.0,3649.9,0.24661]
[1736116779243,0.4079,3650.3,3650.2,0.24659]
[1736116779538,0.4079,3650.3,3650.2,1.24441057]
[1736116780545,0.8185,3650.3,3650.2,1.24441057]
[1736116783448,0.8185,3650.3,3650.2,0.24659]
[1736116783745,0.8185,3650.3,3650.2,1.24441057]
[1736116795942,1.06509,3650.3,3650.2,1.24441057]
[1736116796554,1.06509,3650.3,3650.2,0.99782057]
[1736116797146,1.06509,3650.3,3650.2,1.24441057]
[1736116797751,1.06509,3650.3,3650.2,0.24659]
[1736116798243,0.8185,3650.3,3650.2,0.24659]
[1736116798652,1.06509,3650.3,3650.2,0.24659]
[1736116798950,0.8185,3650.3,3649.9,4.29560087]
[1736116799154,0.2466,3650.1,3649.9,6.62303144]
[1736116800149,0.8185,3650.3,3649.9,5.29342144]
[1736116800350,2.24225114,3650.0,3649.9,0.38190087]
[1736116800551,2.24225114,3650.0,3649.7,4.21110218]
[1736116800552,0.24662,3649.8,3649.7,4.21110218]
[1736116800750,2.24226114,3649.8,3649.7,3.06771218]
[1736116800946,7.24226114,3649.8,3649.7,2.46629218]
[1736116801256,7.24226114,3649.8,3649.7,1.12771827]
[1736116801450,7.24226114,3649.8,3649.7,0.08181827]
[1736116802254,7.24226114,3649.8,3648.9,12.92977369]
[1736116802255,0.61661,3649.5,3648.4,0.24671]
[1736116802555,3.2078,3648.9,3648.2,1.083]
[1736116802758,3.45449,3648.9,3648.6,0.2467]
[1736116803151,3.2078,3648.9,3648.6,0.2467]
[1736116803349,0.24669,3648.8,3648.5,1.24453057]
[1736116806266,0.2467,3648.7,3648.5,0.99782057]
[1736116806471,0.2467,3648.7,3648.4,0.24671]
[1736116807467,0.99782057,3648.6,3648.3,0.2613]
[1736116808064,0.24672,3648.4,3648.3,0.2613]
[1736116812073,0.99782057,3648.6,3648.3,0.2613]
[1736116812368,0.24671,3648.5,3648.3,0.2613]
[1736116812567,0.24672,3648.4,3648.3,0.2613]
[1736116830179,0.24673,3648.2,3648.1,0.8787]
[1736116830370,4.45235057,3648.2,3648.1,0.8787]
[1736116834278,4.45235057,3648.2,3648.1,0.4462]
[1736116842579,0.24674,3648.1,3648.0,0.4455]
[1736116844488,0.65813308,3648.1,3648.0,0.4455]
[1736116845490,4.94591157,3648.1,3648.0,0.4455]
[1736116846489,0.24674,3648.0,3647.9,0.4386]
[1736116848590,0.65813308,3648.0,3647.9,0.4386]
[1736116850185,0.65813308,3648.0,3647.8,0.8452]
[1736116850186,0.41139308,3648.0,3647.8,0.415]
[1736116850386,1.24457057,3647.9,3647.8,0.415]
[1736116851391,11.29968995,3647.9,3647.8,0.415]
[1736116852395,10.30186938,3647.9,3647.8,0.415]
[1736116852591,11.29968995,3647.9,3647.8,0.415]
[1736116864798,0.24678,3647.5,3647.3,0.871]
[1736116865001,0.24678,3647.5,3647.4,0.4314]
[1736116867402,0.65821388,3647.5,3647.4,0.4314]
[1736116872002,0.24678,3647.4,3647.3,0.871]
[1736116872201,0.99782057,3647.4,3646.5,6.46179494]
[1736116872401,0.24683,3646.7,3646.6,0.4238]
[1736116872602,0.24684,3646.6,3646.5,6.46179494]
[1736116872799,5.24684,3646.6,3646.5,6.46179494]
[1736116872999,13.5276492,3646.6,3646.3,8.57194191]
[1736116873207,5.06965,3646.4,3646.3,1.20798869]
[1736116873409,0.24686,3646.3,3646.2,5.65730849]
[1736116873705,0.24687,3646.1,3646.0,0.94732593]
[1736116873907,0.24688,3645.9,3645.7,1.3562376]
[1736116874102,5.20344114,3645.8,3645.3,11.93804047]
[1736116874402,6.81844114,3645.4,3645.1,27.07224071]
[1736116874605,4.98457114,3645.2,3645.1,3.7946454]
[1736116874800,0.24695,3645.0,3644.9,12.17403383]
[1736116874998,1.615,3644.7,3642.8,0.4478]
[1736116875202,3.2078,3644.1,3643.7,0.24703]
[1736116875497,2.5311,3644.1,3644.0,8.49159869]
[1736116875698,3.2078,3644.5,3644.2,0.247]
[1736116875904,3.2078,3644.5,3644.4,8.24458869]
[1736116876203,3.2078,3644.5,3644.4,8.49157869]
[1736116876403,3.2078,3644.5,3644.4,23.60509744]
[1736116876605,3.2078,3644.5,3644.4,23.35810744]
[1736116876804,3.2078,3644.5,3644.4,23.60509744]
[1736116877098,11.233138,3644.5,3644.4,23.60509744]
[1736116877304,8.025338,3644.5,3644.4,19.48700481]
[1736116877505,0.41180926,3644.5,3644.4,19.48700481]
[1736116877704,0.41180926,3644.5,3644.4,15.18107115]
[1736116878101,8.025338,3644.5,3644.4,15.18107115]
[1736116878503,8.025338,3644.5,3644.4,12.71034717]
[1736116879904,0.41180926,3644.5,3644.4,12.71034717]
[1736116881021,0.41180926,3644.7,3644.3,3.2078]
[1736116881207,1.09307926,3644.7,3644.3,3.2078]
[1736116881510,7.80524399,3644.7,3644.3,3.2078]
[1736116881706,5.34255773,3644.4,3644.3,3.2078]
[1736116882712,12.92202406,3644.4,3644.3,3.2078]
[1736116882913,12.92202406,3644.4,3644.2,3.2078]
[1736116883312,7.57946633,3644.4,3644.2,3.2078]
[1736116883908,7.57946633,3644.3,3644.2,3.4548]
[1736116884111,7.57946633,3644.3,3644.2,0.247]
[1736116884919,0.41180926,3644.3,3644.2,0.247]
[1736116885206,0.41180926,3644.3,3644.2,15.91815717]
[1736116885919,4.2585728,3644.5,3644.2,15.67115717]
[1736116886113,4.2585728,3644.5,3644.4,0.24699]
[1736116886817,4.2585728,3644.5,3644.4,12.71034717]
[1736116887816,4.67038206,3644.6,3644.5,0.24698]
[1736116888016,4.67038206,3644.6,3644.5,2.45237373]
[1736116888209,4.67038206,3644.6,3644.5,14.9157309]
[1736116888414,4.67038206,3644.9,3644.5,12.46335717]
[1736116888609,4.67038206,3644.9,3644.6,4.74907]
[1736116889114,4.67038206,3644.9,3644.6,17.21242717]
[1736116889510,4.2585728,3644.9,3644.6,17.21242717]
[1736116890410,4.2585728,3644.9,3644.6,16.96545717]
[1736116890612,4.2585728,3644.9,3644.7,0.24696]
[1736116891115,4.2585728,3644.9,3644.7,12.71031717]
[1736116892913,4.2585728,3644.8,3644.7,12.71031717]
[1736116896821,5.34255773,3645.0,3644.7,12.71031717]
[1736116897022,5.34255773,3645.0,3644.7,2.82889488]
[1736116897412,5.34255773,3645.0,3644.7,3.07585488]
[1736116897617,7.26471283,3644.9,3644.7,3.07585488]
[1736116898522,4.67160843,3644.9,3644.7,3.07585488]
[1736116899526,5.58948773,3645.2,3644.7,3.07585488]
[1736116899527,4.25979917,3645.0,3644.7,3.07585488]
[1736116900525,4.25979917,3645.0,3644.8,0.24696]
[1736116900725,4.25979917,3645.0,3644.7,3.07585488]
[1736116902624,4.25979917,3645.0,3644.7,2.82889488]
[1736116902828,4.25979917,3645.0,3644.9,0.24695]
[1736116903726,6.89601803,3645.2,3644.9,0.24695]
[1736116904526,6.48420877,3645.1,3644.9,0.24695]
[1736116906022,0.41180926,3645.0,3644.9,0.24695]
[1736116907121,0.41180926,3645.1,3644.9,0.24695]
[1736116907525,0.41180926,3645.1,3644.8,0.24696]
[1736116907929,0.41180926,3645.1,3644.8,3.07585488]